bitfinex/quotes_BTCUSD_20241116
["timestamp","ask_amount","ask_price","bid_price","bid_amount"]
[1731746288038,0.45473438,91271.0,91270.0,0.495]
[1731746288667,0.40547952,91271.0,91270.0,0.495]
[1731746289128,0.45673438,91271.0,91270.0,0.495]
[1731746289368,0.30898553,91271.0,91270.0,0.495]
[1731746289580,0.30898553,91271.0,91270.0,0.28851875]
[1731746290051,0.30698553,91271.0,91270.0,0.28851875]
[1731746291349,0.19242253,91271.0,91270.0,0.3701475]
[1731746291553,0.11602253,91271.0,91270.0,0.4797125]
[1731746291766,0.00695998,91271.0,91270.0,0.42108375]
[1731746291978,0.00695998,91271.0,91270.0,0.5027125]
[1731746292188,0.0008583,91271.0,91270.0,0.5027125]
[1731746299335,0.0008583,91271.0,91270.0,0.56134125]
[1731746299548,0.0008583,91271.0,91270.0,0.69124125]
[1731746299757,0.0008583,91271.0,91270.0,0.6096125]
[1731746299969,0.0008583,91271.0,91270.0,0.69124125]
[1731746300169,0.0008583,91271.0,91270.0,1.18351696]
[1731746300376,0.0008583,91271.0,91270.0,0.6096125]
[1731746300574,0.0008583,91271.0,91270.0,0.6326125]
[1731746301274,0.0008583,91271.0,91270.0,0.71424125]
[1731746301410,0.0008583,91271.0,91270.0,0.6326125]
[1731746301614,0.0008583,91271.0,91270.0,0.5504125]
[1731746304592,0.0008583,91271.0,91270.0,0.5274125]
[1731746305760,0.0008583,91271.0,91270.0,0.44578375]
[1731746306011,0.0008583,91271.0,91270.0,0.5274125]
[1731746307584,0.0008583,91271.0,91270.0,0.5291293]
[1731746308223,0.0008583,91271.0,91270.0,0.527903]
[1731746308644,0.0008583,91271.0,91270.0,0.52553012]
[1731746309891,0.0008583,91271.0,91270.0,0.52350636]
[1731746310342,0.0008583,91271.0,91270.0,0.51760211]
[1731746313405,0.0008583,91271.0,91270.0,0.59923086]
[1731746313606,0.0008583,91271.0,91270.0,0.51760211]
[1731746314280,0.0008583,91271.0,91270.0,0.51259464]
[1731746314728,0.0008583,91271.0,91270.0,0.50657174]
[1731746320259,0.0008583,91271.0,91270.0,0.51474514]
[1731746321320,0.0008583,91271.0,91270.0,0.50657174]
[1731746324282,0.0008583,91271.0,91270.0,0.51475004]
[1731746324757,0.0008583,91271.0,91270.0,0.59637879]
[1731746328279,0.0008583,91271.0,91270.0,0.59638067]
[1731746328486,0.0008583,91271.0,91270.0,0.58820049]
[1731746337008,0.0008583,91271.0,91270.0,0.58920049]
[1731746340769,0.0008583,91271.0,91270.0,0.68724288]
[1731746340991,0.16504464,91292.0,91270.0,0.68724288]
[1731746340992,0.16504464,91292.0,91289.0,0.219082]
[1731746341224,0.16504464,91292.0,91291.0,0.109539]
[1731746341436,0.0008581,91292.0,91291.0,0.109539]
[1731746342284,0.0008581,91292.0,91287.0,0.3823445]
[1731746342499,0.0008581,91292.0,91291.0,0.109539]
[1731746343937,0.0008581,91292.0,91291.0,0.1112538]
[1731746344138,0.0008581,91292.0,91291.0,0.1243183]
[1731746345136,0.0008581,91292.0,91291.0,0.14629823]
[1731746346260,0.0008581,91292.0,91291.0,0.13323373]
[1731746346676,0.0008581,91292.0,91291.0,0.14628411]
[1731746346882,0.0008581,91292.0,91291.0,0.13323373]
[1731746347518,0.0008581,91292.0,91291.0,0.2745113]
[1731746347699,0.0008581,91292.0,91291.0,0.19288255]
[1731746347907,0.0008581,91292.0,91291.0,0.2745113]
[1731746348534,0.0759581,91292.0,91291.0,0.19288255]
[1731746349183,0.0759581,91292.0,91291.0,0.2745113]
[1731746351404,0.0759581,91292.0,91291.0,0.19288255]
[1731746352960,0.0759581,91292.0,91291.0,0.1112538]
[1731746353185,0.33965865,91292.0,91291.0,0.0017148]
[1731746353591,0.34639861,91292.0,91291.0,0.0017148]
[1731746362223,0.34639861,91292.0,91291.0,0.08334355]
[1731746362224,0.19176061,91292.0,91291.0,0.08334355]
[1731746362824,0.08269806,91292.0,91291.0,0.2745113]
[1731746363025,0.00759806,91292.0,91291.0,0.2745113]
[1731746363244,0.0008581,91292.0,91291.0,0.2745113]
[1731746363654,0.0008581,91292.0,91291.0,0.27259223]
[1731746363867,0.0008581,91292.0,91291.0,0.18992001]
[1731746365715,0.0008581,91292.0,91291.0,0.27154876]
[1731746366126,0.0008581,91292.0,91291.0,0.27326356]
[1731746367815,0.0008581,91292.0,91291.0,0.32296356]
[1731746376301,0.000858,91309.0,91308.0,0.109519]
[1731746376559,0.00765028,91309.0,91308.0,0.109519]
[1731746377087,0.000858,91309.0,91308.0,0.109519]
[1731746377613,0.000858,91309.0,91308.0,0.19114775]
[1731746377827,0.000858,91309.0,91308.0,0.109519]
[1731746379547,0.000858,91309.0,91308.0,0.14518493]
[1731746382429,0.000858,91309.0,91308.0,0.22681368]
[1731746382842,0.26735942,91338.0,91308.0,0.22681368]
[1731746382843,0.0759,91325.0,91324.0,0.1095]
[1731746383086,0.0759,91325.0,91324.0,0.19112875]
[1731746383260,0.08271258,91325.0,91324.0,0.19112875]
[1731746383472,0.0759,91325.0,91324.0,0.22718595]
[1731746384389,0.0461,91335.0,91324.0,0.22718595]
[1731746384390,0.0759,91332.0,91328.0,0.10327266]
[1731746384611,0.0759,91332.0,91328.0,0.18490141]
[1731746385348,0.0759,91332.0,91328.0,0.26519068]
[1731746385566,0.0461,91343.0,91328.0,0.26519068]
[1731746385567,0.0759,91338.0,91328.0,0.26519068]
[1731746386119,0.0759,91338.0,91328.0,0.26460953]
[1731746387945,0.0028575,91360.0,91328.0,0.37367208]
[1731746388194,0.0759,91344.0,91328.0,0.37367208]
[1731746388377,0.0759,91344.0,91328.0,0.37867208]
[1731746389363,0.0759,91344.0,91328.0,0.37367208]
[1731746389577,0.0759,91344.0,91328.0,0.37867208]
[1731746390760,0.0759,91344.0,91328.0,0.37367208]
[1731746390994,0.0759,91344.0,91328.0,0.26460953]
[1731746390995,0.0461,91340.0,91328.0,0.26460953]
[1731746391203,0.0759,91344.0,91328.0,0.26460953]
[1731746392017,0.0759,91344.0,91328.0,0.27273449]
[1731746399395,0.0759,91344.0,91328.0,0.19110574]
[1731746399817,0.0759,91344.0,91328.0,0.19281974]
[1731746400019,0.155572,91348.0,91328.0,0.19281974]
[1731746400020,0.0461,91348.0,91328.0,0.19281974]
[1731746400264,0.0772,91331.0,91328.0,0.19281974]
[1731746403379,0.0772,91331.0,91328.0,0.11119099]
[1731746403590,0.0498,91336.0,91328.0,0.11119099]
[1731746403591,0.0780578,91329.0,91328.0,0.11119099]
[1731746404876,0.0780578,91329.0,91328.0,0.1109618]
[1731746405102,0.1278578,91329.0,91328.0,0.1109618]
[1731746405367,0.1278578,91329.0,91328.0,0.00983896]
[1731746405545,0.13569201,91329.0,91328.0,0.001714]
[1731746407163,0.35624856,91329.0,91328.0,0.001714]
[1731746407392,0.35924856,91329.0,91328.0,0.001714]
[1731746408316,0.36124856,91329.0,91328.0,0.001714]
[1731746408591,0.35924856,91329.0,91328.0,0.001714]
[1731746408824,0.36424856,91329.0,91328.0,0.001714]
[1731746411637,0.36179737,91329.0,91328.0,0.001714]
[1731746412115,0.387713,91329.0,91328.0,0.001714]
[1731746413270,0.389713,91329.0,91328.0,0.001714]
[1731746414190,0.389713,91329.0,91306.0,0.03469697]
[1731746414191,0.005,91317.0,91306.0,0.03469697]
[1731746414424,0.005,91317.0,91292.0,0.219075]
[1731746414425,0.122,91300.0,91289.0,0.30071075]
[1731746414645,0.122,91300.0,91299.0,0.03619781]
[1731746414874,0.0018248,91299.0,91295.0,0.109534]
[1731746415140,0.122,91300.0,91296.0,0.109533]
[1731746415366,0.122,91300.0,91286.0,0.08162875]
[1731746415367,0.21906,91299.0,91286.0,0.08162875]
[1731746415592,0.21906,91299.0,91291.0,0.14611637]
[1731746415593,0.109533,91297.0,91291.0,0.14611637]
[1731746415714,0.0755,91296.0,91291.0,0.0017148]
[1731746415944,0.0773176,91296.0,91292.0,0.109538]
[1731746417057,0.0773176,91296.0,91293.0,0.109536]
[1731746417444,0.0773176,91296.0,91295.0,0.109535]
[1731746419353,0.0773176,91296.0,91294.0,0.109535]
[1731746419775,0.0755,91296.0,91294.0,0.109535]
[1731746420012,0.00764418,91295.0,91294.0,0.109535]
[1731746420427,0.00764418,91295.0,91291.0,0.0017148]
[1731746421391,0.11717918,91295.0,91291.0,0.0017148]
[1731746421602,0.00764418,91295.0,91291.0,0.1112538]
[1731746421829,0.00764418,91295.0,91292.0,0.109538]
[1731746422043,0.00764418,91295.0,91293.0,0.109537]
[1731746422880,0.00764418,91295.0,91294.0,0.109536]
[1731746423548,0.0755,91296.0,91295.0,0.109535]
[1731746424195,0.0755,91296.0,91291.0,0.0017148]
[1731746424401,0.0755,91296.0,91292.0,0.109538]
[1731746424866,0.0755,91296.0,91293.0,0.109536]
[1731746425140,0.0755,91296.0,91291.0,0.0017148]
[1731746425368,0.185033,91296.0,91291.0,0.0017148]
[1731746425595,0.109536,91294.0,91291.0,0.0017148]
[1731746425828,0.185038,91292.0,91291.0,0.0017148]
[1731746426054,0.29410055,91292.0,91291.0,0.0017148]
[1731746427172,0.29590855,91292.0,91291.0,0.0017148]
[1731746427808,0.18637055,91292.0,91291.0,0.0017148]
[1731746428224,0.29590855,91292.0,91291.0,0.0017148]
[1731746428436,0.18637055,91292.0,91291.0,0.0017148]
[1731746429176,0.18637055,91292.0,91291.0,0.1112538]
[1731746429872,0.18456255,91292.0,91291.0,0.1112538]
[1731746430302,0.19219372,91292.0,91291.0,0.1112538]
[1731746430788,0.08313117,91292.0,91291.0,0.1112538]
[1731746431013,0.00763117,91292.0,91291.0,0.1112538]
[1731746431245,0.0755,91297.0,91296.0,0.109533]
[1731746431503,0.18456255,91297.0,91296.0,0.109533]
[1731746431920,0.18888769,91297.0,91296.0,0.109533]
[1731746432134,0.18888769,91297.0,91296.0,0.10761673]
[1731746432364,0.18888769,91297.0,91296.0,0.10570129]
[1731746432594,0.18888769,91297.0,91296.0,0.10266602]
[1731746433726,0.18888769,91297.0,91293.0,0.109537]
[1731746433939,0.18888769,91297.0,91294.0,0.109535]
[1731746434152,0.29841969,91297.0,91292.0,0.109537]
[1731746434357,0.29841969,91297.0,91291.0,0.0017148]
[1731746434358,0.18888769,91297.0,91291.0,0.0017148]
[1731746434569,0.18888769,91297.0,91292.0,0.109538]
[1731746434775,0.18888769,91297.0,91291.0,0.0017148]
[1731746434776,0.18888769,91297.0,91293.0,0.109536]
[1731746434999,0.18888769,91297.0,91296.0,0.0017146]
[1731746435218,0.18974499,91297.0,91296.0,0.0017146]
[1731746435852,0.18974499,91297.0,91296.0,0.1112476]
[1731746436307,0.18974499,91297.0,91296.0,0.0007146]
[1731746436572,0.29927699,91297.0,91296.0,0.0007146]
[1731746440189,0.35127699,91297.0,91296.0,0.0007146]
[1731746440371,0.35327699,91297.0,91296.0,0.0007146]
[1731746440909,0.35827699,91297.0,91296.0,0.0007146]
[1731746441775,0.35827699,91297.0,91291.0,0.0017148]
[1731746441776,0.005,91292.0,91291.0,0.0017148]
[1731746442013,0.43679913,91292.0,91291.0,0.0017148]
[1731746442227,0.44111932,91292.0,91291.0,0.0017148]
[1731746442696,0.44611932,91292.0,91291.0,0.0017148]
[1731746442918,0.38752074,91292.0,91291.0,0.0017148]
[1731746445399,0.38252074,91292.0,91291.0,0.0017148]
[1731746445626,0.38752074,91292.0,91291.0,0.0017148]
[1731746449110,0.38552074,91292.0,91291.0,0.0017148]
[1731746451590,0.35752074,91292.0,91291.0,0.0017148]
[1731746451824,0.31552074,91292.0,91291.0,0.0017148]
[1731746452030,0.31052074,91292.0,91291.0,0.0017148]
[1731746452677,0.31552074,91292.0,91291.0,0.0017148]
[1731746452886,0.31052074,91292.0,91291.0,0.0017148]
[1731746453099,0.31552074,91292.0,91291.0,0.0017148]
[1731746454018,0.31552074,91292.0,91270.0,0.48780599]
[1731746454019,0.109542,91289.0,91283.0,0.109549]
[1731746454231,0.11332087,91288.0,91283.0,0.109549]
[1731746455103,0.11332087,91288.0,91283.0,0.109548]
[1731746455308,0.11332087,91288.0,91270.0,0.26867799]
[1731746455309,0.11332087,91288.0,91271.0,0.219127]
[1731746455512,0.11332087,91288.0,91287.0,0.109544]
[1731746457692,0.10906255,91288.0,91287.0,0.109544]
[1731746458141,0.10906255,91288.0,91285.0,0.109546]
[1731746458586,0.10906255,91288.0,91287.0,0.1112586]
[1731746459252,0.10906255,91288.0,91287.0,0.0017146]
[1731746460975,0.11086095,91288.0,91287.0,0.0017146]
[1731746463485,0.22040395,91288.0,91287.0,0.0017146]
[1731746465055,0.35070395,91288.0,91287.0,0.0017146]
[1731746467511,0.3531601,91288.0,91287.0,0.0017146]
[1731746469108,0.3531601,91288.0,91287.0,0.1112586]
[1731746469109,0.1133171,91288.0,91287.0,0.1112586]
[1731746469516,0.10906255,91288.0,91287.0,0.1112586]
[1731746470440,0.0008573,91296.0,91288.0,0.219086]
[1731746470658,0.10906255,91295.0,91288.0,0.219086]
[1731746470872,0.10906255,91295.0,91293.0,0.109536]
[1731746471965,0.10906255,91295.0,91293.0,0.10895268]
[1731746472425,0.10906255,91295.0,91290.0,0.219082]
[1731746473092,0.0018128,91294.0,91287.0,0.0017146]
[1731746473314,0.0018128,91294.0,91290.0,0.10954]
[1731746473315,0.10906255,91293.0,91290.0,0.10954]
[1731746473545,0.11087295,91293.0,91290.0,0.219081]
[1731746473726,0.11087295,91293.0,91291.0,0.109538]
[1731746476965,0.11087295,91293.0,91290.0,0.219081]
[1731746477173,0.11087295,91293.0,91292.0,0.109538]
[1731746481043,0.11087295,91293.0,91292.0,0.132538]
[1731746481482,0.11087295,91293.0,91288.0,0.242086]
[1731746481716,0.11087295,91293.0,91292.0,0.109538]
[1731746481943,0.10906255,91293.0,91292.0,0.109538]
[1731746482148,0.0008573,91296.0,91295.0,0.109535]
[1731746482608,0.00327522,91296.0,91295.0,0.109535]
[1731746482820,0.0008573,91296.0,91295.0,0.109535]
[1731746483448,0.0008573,91296.0,91295.0,0.132535]
[1731746484097,0.0008573,91296.0,91295.0,0.109535]
[1731746484737,0.0008573,91296.0,91292.0,0.219077]
[1731746485010,0.00321262,91296.0,91295.0,0.109535]
[1731746485907,0.0008573,91296.0,91293.0,0.109536]
[1731746486119,0.00425824,91296.0,91293.0,0.109536]
[1731746486549,0.00425824,91296.0,91289.0,0.219084]
[1731746486756,0.00425824,91296.0,91293.0,0.109537]
[1731746487604,0.00425824,91296.0,91291.0,0.219079]
[1731746488031,0.00425824,91296.0,91289.0,0.328626]
[1731746488238,0.00425824,91296.0,91283.0,0.03550152]
[1731746488239,0.0791,91294.0,91283.0,0.03550152]
[1731746488451,0.0791,91294.0,91283.0,0.25459852]
[1731746488452,0.32813655,91293.0,91283.0,0.25459852]
[1731746488672,0.10954,91291.0,91285.0,0.109546]
[1731746488886,0.10906255,91290.0,91285.0,0.109546]
[1731746489302,0.1124757,91290.0,91283.0,0.25459852]
[1731746489514,0.0018008,91289.0,91287.0,0.1112576]
[1731746489734,0.10906255,91288.0,91287.0,0.1112576]
[1731746489942,0.11086095,91288.0,91287.0,0.0017146]
[1731746491960,0.08700581,91288.0,91287.0,0.0017146]
[1731746493128,0.08700581,91288.0,91287.0,0.1112586]
[1731746495520,0.08786341,91288.0,91287.0,0.1112586]
[1731746496804,0.002656,91288.0,91287.0,0.1112586]
[1731746497277,0.0008576,91288.0,91287.0,0.1112586]
[1731746497775,0.0008576,91288.0,91287.0,0.1841586]
[1731746503019,0.04856552,91299.0,91298.0,0.109531]
[1731746503245,0.15762807,91299.0,91298.0,0.109531]
[1731746503653,0.16284809,91299.0,91298.0,0.109531]
[1731746507368,0.16370569,91299.0,91298.0,0.109531]
[1731746509452,0.16370569,91299.0,91296.0,0.08694242]
[1731746509661,0.10906255,91298.0,91291.0,0.219077]
[1731746509838,0.10906255,91298.0,91297.0,0.109532]
[1731746517003,0.10906255,91298.0,91293.0,0.219074]
[1731746517227,0.10906255,91298.0,91294.0,0.109535]
[1731746517458,0.005204,91297.0,91296.0,0.109533]
[1731746524484,0.005204,91297.0,91295.0,0.001715]
[1731746524708,0.005204,91297.0,91296.0,0.109533]
[1731746525922,0.005204,91297.0,91295.0,0.001715]
[1731746526133,0.10906255,91296.0,91295.0,0.001715]
[1731746526587,0.11078981,91296.0,91295.0,0.001715]
[1731746526799,0.22032281,91296.0,91295.0,0.001715]
[1731746527816,0.3020948,91296.0,91295.0,0.001715]
[1731746528450,0.30157064,91296.0,91295.0,0.001715]
[1731746530267,0.19203764,91296.0,91295.0,0.001715]
[1731746534363,0.30157064,91296.0,91295.0,0.001715]
[1731746534789,0.19203764,91296.0,91295.0,0.001715]
[1731746535021,0.30157064,91296.0,91295.0,0.001715]
[1731746535973,0.30657064,91296.0,91295.0,0.001715]
[1731746536190,0.35227064,91296.0,91295.0,0.001715]
[1731746536406,0.1258,91287.0,91275.0,0.16418654]
[1731746536609,0.1258,91287.0,91285.0,0.16418654]
[1731746536610,0.21978765,91286.0,91285.0,0.16418654]
[1731746536835,0.219096,91284.0,91275.0,0.16418654]
[1731746537056,0.109552,91281.0,91275.0,0.16418654]
[1731746537265,0.10906255,91280.0,91276.0,0.109557]
[1731746537465,0.11022725,91280.0,91275.0,0.14590584]
[1731746537898,0.11022725,91280.0,91274.0,0.219118]
[1731746538108,0.11022725,91280.0,91276.0,0.109557]
[1731746538321,0.11022725,91280.0,91273.0,0.109561]
[1731746538795,0.109554,91279.0,91273.0,0.10956]
[1731746538997,0.10906255,91278.0,91273.0,0.10956]
[1731746539230,0.00390132,91277.0,91273.0,0.10956]
[1731746539425,0.11296387,91277.0,91273.0,0.10956]
[1731746539627,0.11296387,91277.0,91274.0,0.10956]
[1731746540193,0.00115509,91276.0,91274.0,0.10956]
[1731746540664,0.00115509,91276.0,91270.0,0.30351371]
[1731746540807,0.00115509,91276.0,91273.0,0.109561]
[1731746541013,0.000702,91276.0,91273.0,0.109561]
[1731746541217,0.0005104,91276.0,91273.0,0.109561]
[1731746541428,0.0005104,91276.0,91270.0,0.30351371]
[1731746541713,0.0789,91274.0,91270.0,0.26867799]
[1731746541895,0.109563,91271.0,91270.0,0.26867799]
[1731746542105,0.10906255,91271.0,91270.0,0.26867799]
[1731746542237,0.11529544,91271.0,91270.0,0.26867799]
[1731746542455,0.11529544,91271.0,91270.0,0.37824299]
[1731746542659,0.11529544,91271.0,91270.0,0.26867799]
[1731746542860,0.11529544,91271.0,91270.0,0.37824299]
[1731746543890,0.10906255,91271.0,91270.0,0.37824299]
[1731746545714,0.10906255,91271.0,91270.0,0.37773432]
[1731746545917,0.10906255,91271.0,91270.0,0.37646262]
[1731746546372,0.10906255,91271.0,91270.0,0.37454781]
[1731746548624,0.0826,91279.0,91270.0,0.37454781]
[1731746548832,0.10906255,91278.0,91270.0,0.48411181]
[1731746549092,0.10906255,91278.0,91277.0,0.109556]
[1731746549432,0.11506749,91278.0,91277.0,0.109556]
[1731746549655,0.10906255,91278.0,91277.0,0.109556]
[1731746549889,0.11506749,91278.0,91277.0,0.109556]
[1731746550209,0.11606832,91278.0,91277.0,0.109556]
[1731746550858,0.00700577,91278.0,91277.0,0.109556]
[1731746551286,0.0826,91285.0,91284.0,0.109548]
[1731746551493,0.19166255,91285.0,91284.0,0.109548]
[1731746551699,0.19766944,91285.0,91284.0,0.109548]
[1731746552986,0.11506944,91285.0,91284.0,0.109548]
[1731746553238,0.00600689,91285.0,91284.0,0.25915939]
[1731746553754,0.0008575,91298.0,91285.0,0.023]
[1731746553975,0.0008575,91298.0,91284.0,0.14961139]
[1731746553976,0.0008575,91298.0,91295.0,0.109535]
[1731746559213,0.0008575,91298.0,91295.0,0.154535]
[1731746560980,0.0008575,91298.0,91295.0,0.19037158]
[1731746562354,0.0008575,91298.0,91295.0,0.14537158]
[1731746570642,0.0839577,91296.0,91295.0,0.109535]
[1731746570859,0.109535,91295.0,91286.0,0.03618524]
[1731746571089,0.10906255,91294.0,91278.0,0.21911]
[1731746571313,0.0831,91293.0,91289.0,0.109541]
[1731746571527,0.10906255,91292.0,91289.0,0.109541]
[1731746572160,0.10906255,91292.0,91279.0,0.16418654]
[1731746572368,0.10906255,91292.0,91282.0,0.03526389]
[1731746572595,0.00476297,91291.0,91290.0,0.10954]
[1731746572814,0.11382552,91291.0,91290.0,0.10954]
[1731746573048,0.11382552,91291.0,91279.0,0.219108]
[1731746573049,0.11382552,91291.0,91279.0,0.25521498]
[1731746573267,0.11382552,91291.0,91271.0,0.219127]
[1731746573268,0.0827,91288.0,91271.0,0.219127]
[1731746573474,0.0827,91288.0,91273.0,0.10956]
[1731746573475,0.1277,91278.0,91273.0,0.10956]
[1731746573735,0.10906255,91277.0,91276.0,0.109557]
[1731746573961,0.11390167,91277.0,91276.0,0.109557]
[1731746574699,0.11441687,91277.0,91276.0,0.109557]
[1731746580981,0.11441687,91277.0,91276.0,0.14428111]
[1731746581882,0.11441687,91277.0,91276.0,0.109557]
[1731746591527,0.11527457,91277.0,91276.0,0.109557]
[1731746593130,0.11527457,91277.0,91276.0,0.097257]
[1731746594016,0.0008577,91277.0,91276.0,0.120257]
[1731746596303,0.0008577,91277.0,91276.0,0.10540509]
[1731746597579,0.0008577,91277.0,91276.0,0.097257]
[1731746606056,0.0008577,91277.0,91276.0,0.10409984]
[1731746608022,0.14504424,91288.0,91285.0,0.109546]
[1731746608245,0.00692466,91287.0,91286.0,0.00684284]
[1731746608468,0.00692466,91287.0,91282.0,0.219099]
[1731746608694,0.0759,91289.0,91282.0,0.219099]
[1731746608903,0.0455,91293.0,91275.0,0.03496695]
[1731746608904,0.1281,91285.0,91275.0,0.03496695]
[1731746609119,0.109551,91282.0,91277.0,0.109556]
[1731746609341,0.18736255,91281.0,91275.0,0.109558]
[1731746609552,0.18736255,91281.0,91277.0,0.109555]
[1731746609553,0.19428421,91281.0,91277.0,0.109555]
[1731746609777,0.30383621,91281.0,91274.0,0.10956]
[1731746609996,0.30383621,91281.0,91273.0,0.03476863]
[1731746609997,0.19428421,91281.0,91275.0,0.109558]
[1731746610219,0.19428421,91281.0,91272.0,0.219125]
[1731746610447,0.0783,91272.0,91261.0,0.220912]
[1731746610704,0.16578096,91271.0,91261.0,0.220912]
[1731746610912,0.16578096,91271.0,91265.0,0.10957]
[1731746610913,0.27534396,91271.0,91265.0,0.10957]
[1731746611165,0.27534396,91271.0,91261.0,0.220912]
[1731746611166,0.27534396,91271.0,91266.0,0.109569]
[1731746611374,0.27534396,91271.0,91261.0,0.220912]
[1731746611375,0.16578096,91271.0,91267.0,0.109568]
[1731746611593,0.27534396,91271.0,91265.0,0.10957]
[1731746612039,0.27534396,91271.0,91261.0,0.220912]
[1731746612258,0.27534396,91271.0,91266.0,0.109569]
[1731746612760,0.27534396,91271.0,91265.0,0.10957]
[1731746613638,0.25394396,91271.0,91265.0,0.10957]
[1731746616504,0.25394396,91271.0,91263.0,0.1112898]
[1731746616717,0.25394396,91271.0,91263.0,0.0017168]
[1731746616932,0.25394396,91271.0,91263.0,0.1112888]
[1731746617179,0.25394396,91271.0,91263.0,0.0017168]
[1731746617385,0.25394396,91271.0,91264.0,0.109571]
[1731746617611,0.25394396,91271.0,91263.0,0.0017168]
[1731746618731,0.25394396,91271.0,91265.0,0.10957]
[1731746620751,0.25394396,91271.0,91263.0,0.0017168]
[1731746620972,0.25394396,91271.0,91263.0,0.1112888]
[1731746621289,0.25394396,91271.0,91264.0,0.109572]
[1731746622733,0.25394396,91271.0,91265.0,0.10957]
[1731746623363,0.25394396,91271.0,91263.0,0.0017168]
[1731746623364,0.25394396,91271.0,91264.0,0.109572]
[1731746623578,0.25394396,91271.0,91265.0,0.10957]
[1731746623953,0.25394396,91271.0,91263.0,0.1112888]
[1731746626368,0.25394396,91271.0,91265.0,0.109569]
[1731746627078,0.25394396,91271.0,91263.0,0.0017168]
[1731746627256,0.25394396,91271.0,91264.0,0.109571]
[1731746627823,0.25394396,91271.0,91265.0,0.10957]
[1731746628456,0.25394396,91271.0,91263.0,0.1112888]
[1731746628696,0.25394396,91271.0,91265.0,0.10957]
[1731746630718,0.25394396,91271.0,91266.0,0.109569]
[1731746631748,0.25394396,91271.0,91264.0,0.109571]
[1731746632590,0.25394396,91271.0,91265.0,0.10957]
[1731746633827,0.11598096,91271.0,91268.0,0.109567]
[1731746633960,0.11598096,91271.0,91270.0,0.37454781]
[1731746634171,0.0008577,91277.0,91270.0,0.3465942]
[1731746634393,0.0008577,91277.0,91275.0,0.109559]
[1731746634394,0.10906255,91276.0,91275.0,0.109559]
[1731746634604,0.11595127,91276.0,91275.0,0.109559]
[1731746634800,0.11595127,91276.0,91271.0,0.219127]
[1731746635105,0.11595127,91276.0,91270.0,0.30121084]
[1731746635267,0.11595127,91276.0,91272.0,0.109562]
[1731746636347,0.11595127,91276.0,91270.0,0.26498281]
[1731746636553,0.219118,91275.0,91270.0,0.26498281]
[1731746636754,0.16095127,91276.0,91270.0,0.26498281]
[1731746636755,0.10906255,91274.0,91270.0,0.26498281]
[1731746636880,0.11595206,91274.0,91270.0,0.26498281]
[1731746637284,0.11595206,91274.0,91270.0,0.37454681]
[1731746638174,0.11595206,91274.0,91270.0,0.26498281]
[1731746639336,0.11595206,91274.0,91270.0,0.26065232]
[1731746640053,0.11595206,91274.0,91270.0,0.36887862]
[1731746640691,0.11595206,91274.0,91271.0,0.109563]
[1731746641434,0.11595206,91274.0,91270.0,0.25915172]
[1731746642054,0.11595206,91274.0,91270.0,0.36826257]
[1731746642726,0.11595206,91274.0,91270.0,0.25869857]
[1731746643379,0.11595206,91274.0,91270.0,0.36826257]
[1731746643830,0.11595206,91274.0,91271.0,0.109562]
[1731746644531,0.11595206,91274.0,91270.0,0.25869857]
[1731746645864,0.11595206,91274.0,91270.0,0.36826257]
[1731746647109,0.11595206,91274.0,91270.0,0.25869857]
[1731746647451,0.109562,91273.0,91270.0,0.25869857]
[1731746647670,0.1159553,91272.0,91270.0,0.25869857]
[1731746648882,0.2255173,91272.0,91270.0,0.25869857]
[1731746649292,0.1159553,91272.0,91270.0,0.25869857]
[1731746649496,0.109563,91271.0,91270.0,0.25869857]
[1731746649794,0.35821797,91271.0,91270.0,0.25869857]
[1731746650016,0.30851797,91271.0,91270.0,0.01955572]
[1731746657682,0.31351797,91271.0,91270.0,0.01955572]
[1731746657898,0.46183572,91271.0,91270.0,0.01955572]
[1731746658112,0.36331797,91271.0,91270.0,0.01955572]
[1731746660263,0.72683625,91271.0,91270.0,0.01955572]
[1731746660486,0.36331797,91271.0,91270.0,0.01955572]
[1731746661453,0.51099493,91271.0,91270.0,0.01955572]
[1731746662581,0.36331797,91271.0,91270.0,0.01955572]
[1731746663949,0.36417557,91271.0,91270.0,0.01955572]
[1731746667445,0.46257745,91271.0,91270.0,0.01955572]
[1731746668582,0.34801445,91271.0,91270.0,0.01955572]
[1731746668799,0.34801445,91271.0,91270.0,0.12912072]
[1731746668800,0.11681257,91271.0,91270.0,0.12912072]
[1731746671215,0.11681257,91271.0,91270.0,0.1641755]
[1731746674230,0.11681257,91271.0,91270.0,0.12912072]
[1731746689569,0.11681257,91271.0,91270.0,0.11915952]
[1731746696358,0.11681257,91271.0,91270.0,0.11325997]
[1731746696785,0.00775002,91271.0,91270.0,0.11325997]
[1731746697195,0.0008576,91271.0,91270.0,0.11325997]
[1731746705516,0.0008576,91271.0,91263.0,0.2208618]
[1731746705644,0.0008576,91271.0,91270.0,0.109565]
[1731746708658,0.0008576,91271.0,91270.0,0.1104226]
[1731746708887,0.0008576,91271.0,91270.0,0.0008576]
[1731746709110,0.18542015,91271.0,91270.0,0.0008576]
[1731746709272,0.19213077,91271.0,91270.0,0.0008576]
[1731746709679,0.35029377,91271.0,91270.0,0.0008576]
[1731746710659,0.24073077,91271.0,91270.0,0.0008576]
[1731746711097,0.35029377,91271.0,91270.0,0.0008576]
[1731746711524,0.35529377,91271.0,91270.0,0.0008576]
[1731746713657,0.36029377,91271.0,91270.0,0.0008576]
[1731746715480,0.92048957,91271.0,91270.0,0.0008576]
[1731746716117,0.92057848,91271.0,91270.0,0.0008576]
[1731746717378,0.72369051,91271.0,91270.0,0.0008576]
[1731746718480,0.8053019,91271.0,91270.0,0.0008576]
[1731746719528,0.36029377,91271.0,91270.0,0.0008576]
[1731746719729,0.44176,91271.0,91270.0,0.0008576]
[1731746720140,0.80499312,91271.0,91270.0,0.0008576]
[1731746721011,0.8049831,91271.0,91270.0,0.0008576]
[1731746721420,0.96932184,91271.0,91270.0,0.0008576]
[1731746721632,1.05093323,91271.0,91270.0,0.0008576]
[1731746723429,0.82699337,91271.0,91270.0,0.0008576]
[1731746725615,0.82674322,91271.0,91270.0,0.0008576]
[1731746726310,0.82874322,91271.0,91270.0,0.0008576]
[1731746727046,1.07456617,91271.0,91270.0,0.0008576]
[1731746727231,1.05354969,91271.0,91270.0,0.0008576]
[1731746727424,1.34846056,91271.0,91270.0,0.0008576]
[1731746727631,0.9719383,91271.0,91270.0,0.0008576]
[1731746727860,1.04448714,91271.0,91270.0,0.0008576]
[1731746728400,0.202474,91262.0,91261.0,0.001763]
[1731746728607,0.55587253,91262.0,91261.0,0.001763]
[1731746728815,0.9241258,91262.0,91261.0,0.001763]
[1731746729246,0.84251441,91262.0,91261.0,0.001763]